fUST/lending_fUST_20250308
["ID","MTS","AMOUNT","RATE_DAILY","PERIOD"]
[355608574,1741366240715,-575.06,0.00041642,120]
[355608575,1741366240724,-500.0,0.00041642,120]
[355608576,1741366240737,-500.0,0.00041642,120]
[355608577,1741366240746,-568.3,0.00041642,120]
[355608578,1741366240755,-500.0,0.00041642,120]
[355608579,1741366240764,-500.0,0.00041642,120]
[355608580,1741366240775,-500.0,0.00041642,120]
[355608581,1741366240785,-560.3,0.00041642,120]
[355608582,1741366240794,-500.0,0.00041643,7]
[355608583,1741366240802,-2136.8,0.00041643,120]
[355608584,1741366240810,-500.0,0.00041643,120]
[355608585,1741366240818,-183.38,0.00041643,120]
[355608586,1741366240825,-500.0,0.00041673,10]
[355608587,1741366240833,-500.0,0.00041673,10]
[355608588,1741366240843,-2412.42502406,0.00041905,3]
[355608589,1741366240858,-500.0,0.00041916,120]
[355608590,1741366240873,-579.49,0.00041916,120]
[355608591,1741366240883,-189.79,0.00041916,120]
[355608592,1741366240892,-500.0,0.00041916,120]
[355608593,1741366240902,-756.04,0.00041916,7]
[355608594,1741366240912,-277.01,0.00041916,120]
[355608595,1741366240921,-296.42,0.00041916,120]
[355608596,1741366240930,-500.0,0.00041916,120]
[355608597,1741366240940,-317.69,0.00041916,120]
[355608598,1741366240950,-186.86,0.00041916,120]
[355608599,1741366240960,-318.29500115,0.00041916,31]
[355608600,1741366240969,-336.21681522,0.00041916,31]
[355608601,1741366240980,-2136.8,0.00041917,120]
[355608602,1741366241099,-500.0,0.00041917,120]
[355608603,1741366241109,-304.0,0.00042,120]
[355608604,1741366241118,-500.0,0.0004219,120]
[355608605,1741366241127,-470.0,0.0004219,120]
[355608606,1741366241137,-756.04,0.0004219,7]
[355608607,1741366241147,-356.24,0.0004219,120]
[355608608,1741366241156,-500.0,0.00042191,7]
[355608609,1741366241166,-2136.8,0.00042191,120]
[355608610,1741366241176,-500.0,0.00042191,120]
[355608611,1741366241185,-209.08,0.000422,30]
[355608612,1741366241195,-500.0,0.00042464,120]
[355608613,1741366241205,-756.04,0.00042464,7]
[355608614,1741366241214,-2136.8,0.00042465,120]
[355608615,1741366241224,-499.15,0.00042465,120]
[355608616,1741366241238,-404.31,0.00042738,120]
[355608617,1741366241248,-756.04,0.00042738,7]
[355608618,1741366241257,-500.0,0.00042739,7]
[355608619,1741366241266,-2136.8,0.00042739,120]
[355608620,1741366241276,-756.04,0.00043012,7]
[355608621,1741366241286,-2136.8,0.00043013,120]
[355608622,1741366241298,-756.04,0.00043286,7]
[355608623,1741366241308,-500.0,0.00043287,7]
[355608624,1741366241317,-2136.8,0.00043287,120]
[355608625,1741366241327,-2412.42502406,0.00043551,3]
[355608626,1741366241336,-756.04,0.0004356,7]
[355608627,1741366241346,-2136.8,0.00043561,120]
[355608628,1741366241355,-153.83,0.000436,36]
[355608629,1741366241365,-153.83,0.000436,36]
[355608630,1741366241374,-756.04,0.00043834,7]
[355608631,1741366241383,-500.0,0.00043835,7]
[355608632,1741366241393,-2136.8,0.00043835,120]
[355608633,1741366241403,-942.83505732,0.00043991,28]
[355608634,1741366241412,-304.0,0.00044,120]
[355608635,1741366241422,-756.04,0.00044108,7]
[355608636,1741366241432,-2136.8,0.00044109,120]
[355608637,1741366241445,-756.04,0.00044382,7]
[355608638,1741366241454,-500.0,0.00044383,7]
[355608639,1741366241464,-2136.8,0.00044383,120]
[355608640,1741366241473,-756.04,0.00044656,7]
[355608641,1741366241485,-2136.985616,0.00044657,120]
[355608642,1741366241495,-756.04,0.0004493,7]
[355608643,1741366241504,-500.0,0.00044931,7]
[355608644,1741366241514,-756.04,0.00045204,7]
[355608645,1741366241524,-1000.0,0.00045215,10]
[355608646,1741366241535,-756.04,0.00045478,7]
[355608647,1741366241545,-500.0,0.00045479,7]
[355608648,1741366241555,-756.04,0.00045752,7]
[355608649,1741366241565,-304.0,0.00046,120]
[355608650,1741366241574,-756.04,0.00046026,7]
[355608651,1741366241584,-358.64,0.00046027,7]
[355608652,1741366241594,-1000.0,0.00046052,10]
[355608653,1741366241604,-551.61881805,0.00046052,10]
[355608654,1741366241614,-1000.0,0.00046052,10]
[355608655,1741366241624,-1000.0,0.00046052,10]
[355608656,1741366241635,-500.0,0.00046055,30]
[355608657,1741366241645,-209.08,0.000461,30]
[355608658,1741366241655,-756.04,0.000463,7]
[355608659,1741366241664,-153.83,0.000464,42]
[355608660,1741366241673,-153.83,0.000464,42]
[355608661,1741366241683,-500.0,0.00046532,2]
[355608662,1741366241696,-756.04,0.00046574,7]
[355608663,1741366241714,-500.0,0.00046575,10]
[355608664,1741366241724,-554.81292988,0.00046724,90]
[355608665,1741366241737,-600.0,0.00046749,120]
[355608666,1741366241746,-554.81292988,0.00046824,90]
[355608667,1741366241755,-756.04,0.00046848,7]
[355608668,1741366241763,-554.81292988,0.00046924,91]
[355608669,1741366241773,-600.0,0.00047023,120]
[355608670,1741366241783,-554.81292988,0.00047024,91]
[355608671,1741366241792,-200.0,0.00047075,120]
[355608672,1741366241803,-756.04,0.00047122,7]
[355608673,1741366241814,-554.81292988,0.00047124,98]
[355608674,1741366241823,-1000.0,0.00047152,10]
[355608675,1741366241833,-1000.0,0.00047152,10]
[355608676,1741366241844,-554.81292988,0.00047224,99]
[355608677,1741366241854,-600.0,0.00047297,120]
[355608678,1741366241864,-554.81292988,0.00047324,90]
[355608680,1741366241873,-756.04,0.00047396,7]
[355608682,1741366241883,-268.57250955,0.00047405,2]
[355608684,1741366241892,-554.81292988,0.00047424,98]
[355608685,1741366241902,-554.81292988,0.00047524,90]
[355608686,1741366241912,-600.0,0.00047571,120]
[355608687,1741366241923,-554.81292988,0.00047624,91]
[355608688,1741366241932,-756.04,0.0004767,7]
[355608689,1741366241944,-554.81292988,0.00047724,96]
[355608690,1741366241954,-1433.91602871,0.00047771,120]
[355608691,1741366241964,-554.81292988,0.00047824,96]
[355608692,1741366241974,-3000.0,0.000479,2]
[355608694,1741366241991,-200.0,0.00047909,120]
[355608695,1741366242000,-554.81292988,0.00047924,94]
[355608696,1741366242009,-756.0808,0.00047944,7]
[355608697,1741366242018,-209.08,0.00048,30]
[355608698,1741366242027,-304.0,0.00048,120]
[355608699,1741366242037,-1986.37260245,0.00048,120]
[355608700,1741366242047,-20000.0,0.00048,2]
[355608701,1741366242057,-554.81292988,0.00048024,96]
[355608702,1741366242067,-2412.42502406,0.00048046,4]
[355608703,1741366242077,-1622.43,0.00048056,30]
[355608704,1741366242086,-554.81292988,0.00048124,99]
[355608705,1741366242096,-200.0,0.00048192,120]
[355608706,1741366242106,-554.81292988,0.00048224,97]
[355608707,1741366242115,-554.81292988,0.00048324,90]
[355608708,1741366242127,-1346.02603186,0.00048419,2]
[355608709,1741366242137,-554.81292988,0.00048424,96]
[355608710,1741366242146,-999.0,0.00048498,120]
[355608711,1741366242156,-15199.15901651,0.00048515,120]
[355608712,1741366242166,-15199.15901651,0.00048515,120]
[355608713,1741366242176,-6079.6636066,0.0004852,120]
[355608714,1741366242185,-3039.8318033,0.0004852,120]
[355608715,1741366242195,-554.81292988,0.00048524,98]
[355608716,1741366242205,-2412.42502406,0.00048527,4]
[355608717,1741366242215,-15199.15901651,0.00048537,120]
[355608718,1741366242223,-6079.6636066,0.00048543,120]
[355608719,1741366242236,-15199.15901651,0.00048549,120]
[355608720,1741366242246,-3039.8318033,0.00048549,120]
[355608721,1741366242255,-6079.6636066,0.00048559,120]
[355608722,1741366242264,-3039.8318033,0.00048563,120]
[355608723,1741366242273,-2412.42502406,0.00048568,4]
[355608724,1741366242283,-501.64829074,0.00048573,10]
[355608726,1741366242292,-3039.8318033,0.00048577,120]
[355608728,1741366242302,-6079.6636066,0.00048599,120]
[355608730,1741366242311,-554.81292988,0.00048624,99]
[355608731,1741366242320,-554.81292988,0.00048724,94]
[355608732,1741366242329,-500.0,0.00048767,120]
[355608733,1741366242339,-554.81292988,0.00048824,94]
[355608734,1741366242348,-554.81292988,0.00048924,93]
[355608735,1741366242358,-4824.85004812,0.0004899,4]
[355608736,1741366242367,-2402.19245131,0.00049,120]
[355608737,1741366242377,-45024.4527964,0.00049,30]
[355608738,1741366242386,-45024.4527964,0.00049,30]
[355608739,1741366242396,-1863.78657085,0.00049,30]
[355608740,1741366242405,-1863.78657085,0.00049,30]
[355608741,1741366242415,-1139.95779695,0.00049,120]
[355608742,1741366242424,-2107.07564831,0.00049,120]
[355608743,1741366242434,-554.81292988,0.00049024,91]
[355608744,1741366242443,-999.0,0.00049046,120]
[355608745,1741366242452,-800.0,0.00049063,14]
[355608746,1741366242462,-800.0,0.00049123,14]
[355608747,1741366242472,-554.81292988,0.00049124,98]
[355608748,1741366242485,-800.0,0.00049131,14]
[355608749,1741366242495,-800.0,0.00049173,14]
[355608750,1741366242504,-810.70429918,0.00049198,14]
[355608751,1741366242514,-150.00174682,0.000492,120]
[355608752,1741366242523,-1600.0,0.000492,2]
[355608753,1741366242532,-800.0,0.00049218,14]
[355608754,1741366242541,-800.0,0.0004922,14]
[355608755,1741366242551,-554.81292988,0.00049224,90]
[355608756,1741366242560,-646.6929635,0.00049257,23]
[355608757,1741366242570,-1283.06683,0.0004928,21]
[355608758,1741366242579,-723.56194655,0.00049281,10]
[355608759,1741366242588,-1000.0,0.000493,21]
[355608760,1741366242598,-209.08,0.000493,30]
[355608762,1741366242607,-153.83,0.000493,45]
[355608763,1741366242617,-7237.27507218,0.00049305,4]
[355608766,1741366242627,-800.0,0.00049307,14]
[355608768,1741366242635,-800.0,0.00049314,14]
[355608770,1741366242644,-500.0,0.00049315,120]
[355608771,1741366242654,-500.0,0.00049315,120]
[355608772,1741366242663,-500.0,0.00049315,120]
[355608773,1741366242672,-500.0,0.00049315,120]
[355608774,1741366242681,-500.0,0.00049315,120]
[355608775,1741366242690,-500.0,0.00049315,120]
[355608777,1741366242701,-500.0,0.00049315,120]
[355608779,1741366242710,-500.0,0.00049315,120]
[355608780,1741366242719,-376.77978971,0.00049315,120]
[355608781,1741366242728,-4441.96,0.00049315,120]
[355608782,1741366242739,-4441.96,0.00049315,120]
[355608783,1741366242748,-4441.96,0.00049315,120]
[355608784,1741366242757,-4441.96,0.00049315,120]
[355608785,1741366242767,-4441.96,0.00049315,120]
[355608786,1741366242776,-4441.96,0.00049315,120]
[355608787,1741366242786,-4441.96,0.00049315,120]
[355608788,1741366242795,-4441.96,0.00049315,120]
[355608789,1741366242804,-4441.96,0.00049315,120]
[355608790,1741366242814,-4441.96,0.00049315,120]
[355608791,1741366242823,-4441.96,0.00049315,120]
[355608792,1741366242832,-4441.96,0.00049315,120]
[355608793,1741366242842,-4441.96,0.00049315,120]
[355608794,1741366242851,-4441.96,0.00049315,120]
[355608795,1741366242861,-4441.96,0.00049315,120]
[355608796,1741366242870,-4441.96,0.00049315,120]
[355608798,1741366242879,-4441.96,0.00049315,120]
[355608799,1741366242888,-4441.96,0.00049315,120]
[355608801,1741366242899,-4441.96,0.00049315,120]
[355608802,1741366242910,-4441.96,0.00049315,120]
[355608803,1741366242922,-4441.96,0.00049315,120]
[355608804,1741366242932,-4441.96,0.00049315,120]
[355608805,1741366242943,-4441.96,0.00049315,120]
[355608806,1741366242952,-4441.98580263,0.00049315,120]
[355608807,1741366242963,-1000.0,0.00049315,90]
[355608808,1741366242972,-150.0,0.00049315,10]
[355608809,1741366242984,-200.06073036,0.00049315,10]
[355608810,1741366242994,-1000.0,0.0004932,21]
[355608811,1741366243004,-800.0,0.00049322,30]
[355608812,1741366243013,-554.81292988,0.00049324,100]
[355608813,1741366243022,-1000.0,0.0004934,21]
[355608814,1741366243032,-800.0,0.00049357,30]
[355608815,1741366243042,-800.0,0.00049357,30]
[355608816,1741366243053,-1000.0,0.0004936,21]
[355608817,1741366243063,-9402.63397407,0.00049364,2]
[355608818,1741366243073,-151.0,0.00049376,2]
[355608819,1741366243084,-1000.0,0.0004938,21]
[355608820,1741366243093,-800.0,0.00049382,30]
[355608821,1741366243103,-12062.1251203,0.00049395,4]
[355608822,1741366243112,-1000.0,0.000494,21]
[355608823,1741366243121,-130075.91807781,0.00049405,2]
[355608824,1741366243138,-3456.95754732,0.00049405,2]
[355608825,1741366243150,-55710.35978404,0.00049405,2]
[355608826,1741366243162,-8726.7,0.00049405,2]
[355608827,1741366243198,-600.0,0.00047845,120]
[355608828,1741366243207,-164.0,0.00048,90]
[355608829,1741366243217,-600.0,0.00048393,120]
[355608830,1741366243227,-600.0,0.00048941,120]
[355608831,1741366243239,-24030.06459083,0.00049405,2]
[355608832,1741366243248,-1000.0,0.0004942,21]
[355608833,1741366243257,-554.81292988,0.00049424,94]
[355608834,1741366243267,-1000.0,0.0004944,21]
[355608835,1741366243276,-1000.0,0.0004946,21]
[355608836,1741366243286,-500.0,0.00049473,10]
[355608837,1741366243295,-1000.0,0.0004948,21]
[355608838,1741366243305,-1072.177805,0.0004948,21]
[355608839,1741366243314,-5253.99890402,0.00049481,40]
[355608840,1741366243324,-543.86530464,0.00049481,40]
[355608841,1741366243333,-32247.48046563,0.00049482,20]
[355608842,1741366243345,-4374.49574479,0.00049482,20]
[355608843,1741366243357,-1532.4584,0.00049482,20]
[355608844,1741366243372,-17290.16026455,0.00049482,20]
[355608881,1741366246014,-500.0,0.00041642,120]
[355608882,1741366246024,-1241.8,0.00049472,10]
[355608974,1741367073430,-4853.06320998,0.00024953,20]
[355608975,1741367073462,-941.0,0.00027397,120]
[355609012,1741367352123,-9642.30665841,0.00017,2]
[355609094,1741367432432,-338.13267927,0.00017,2]
[355609095,1741367432442,-179.0483397,0.00025297,2]
[355609096,1741367432451,-350.64898103,0.00025741,2]
[355609133,1741367438233,-1159.74440704,0.00025741,2]
[355609135,1741367438245,-3891.72245903,0.00025741,2]
[355609137,1741367438255,-179.0483397,0.00030297,2]
[355609139,1741367438264,-951.68978205,0.00031,10]
[355609141,1741367438273,-500.0,0.00031,10]
[355609143,1741367438283,-4347.94365103,0.00034038,2]
[355609145,1741367438293,-197.058,0.00034245,2]
[355609147,1741367438305,-150.0,0.000348,2]
[355609149,1741367438314,-500.0,0.00034872,2]
[355609151,1741367438325,-179.0483397,0.00035297,2]
[355609153,1741367438335,-500.0,0.0003589,2]
[355609155,1741367438347,-573.5664115,0.000362,98]
[355609157,1741367438356,-573.56641148,0.00036373,99]
[355609159,1741367438365,-393.729494,0.00036546,2]
[355609161,1741367438375,-160.0,0.00037868,2]
[355609163,1741367438385,-160.0,0.00037868,2]
[355609165,1741367438394,-500.0,0.00038356,30]
[355609167,1741367438405,-500.0,0.00038356,30]
[355609169,1741367438414,-500.0,0.00038356,30]
[355609171,1741367438423,-500.0,0.00038356,30]
[355609173,1741367438433,-500.0,0.00038356,30]
[355609175,1741367438443,-500.0,0.00038356,30]
[355609177,1741367438452,-500.0,0.00038356,30]
[355609179,1741367438461,-500.0,0.00038356,30]
[355609181,1741367438471,-500.0,0.00038356,30]
[355609183,1741367438481,-583.87,0.00038356,30]
[355609185,1741367438491,-500.0,0.00038356,30]
[355609187,1741367438500,-505.83,0.00038356,30]
[355609189,1741367438510,-500.0,0.00038356,30]
[355609191,1741367438520,-586.49,0.00038356,30]
[355609193,1741367438529,-500.0,0.00038356,30]
[355609195,1741367438539,-500.0,0.00038356,30]
[355609197,1741367438549,-500.0,0.00038356,30]
[355609198,1741367438558,-500.0,0.00038629,30]
[355609200,1741367438568,-500.0,0.00038629,30]
[355609202,1741367438577,-500.0,0.00038629,30]
[355609203,1741367438587,-500.0,0.00038629,30]
[355609204,1741367438598,-500.0,0.00038629,30]
[355609205,1741367438607,-500.0,0.00038629,30]
[355609206,1741367438616,-611.96,0.00038629,30]
[355609207,1741367438626,-500.0,0.00038629,30]
[355609208,1741367438635,-500.0,0.00038629,30]
[355609209,1741367438645,-500.0,0.00038629,30]
[355609210,1741367438654,-500.0,0.00038629,30]
[355609211,1741367438663,-500.0,0.00038629,30]
[355609212,1741367438673,-500.0,0.00038629,7]
[355609213,1741367438683,-500.0,0.00038629,30]
[355609214,1741367438693,-500.0,0.00038629,30]
[355609215,1741367438703,-500.0,0.00038629,30]
[355609216,1741367438712,-500.0,0.00038629,30]
[355609217,1741367438722,-523.78,0.00038629,30]
[355609218,1741367438732,-500.0,0.00038629,30]
[355609219,1741367438742,-500.0,0.00038629,30]
[355609220,1741367438751,-593.61,0.00038629,30]
[355609221,1741367438762,-500.0,0.00038629,30]
[355609222,1741367438772,-500.0,0.00038629,30]
[355609223,1741367438782,-500.0,0.00038629,30]
[355609224,1741367438792,-500.0,0.00038629,30]
[355609225,1741367438802,-500.0,0.0003863,30]
[355609226,1741367438811,-500.0,0.0003863,30]
[355609227,1741367438821,-500.0,0.0003863,30]
[355609228,1741367438831,-500.0,0.0003863,30]
[355609229,1741367438841,-572.68,0.0003863,30]
[355609230,1741367438851,-500.0,0.0003863,30]
[355609231,1741367438861,-500.0,0.0003863,30]
[355609232,1741367438871,-500.0,0.0003863,30]
[355609233,1741367438880,-500.0,0.0003863,30]
[355609234,1741367438889,-178.61,0.0003863,30]
[355609235,1741367438899,-500.0,0.0003863,30]
[355609236,1741367438908,-500.0,0.00038802,30]
[355609237,1741367438919,-500.0,0.00038802,30]
[355609238,1741367438929,-500.0,0.00038802,30]
[355609239,1741367438939,-500.0,0.00038802,30]
[355609240,1741367438948,-500.0,0.00038802,30]
[355609241,1741367438957,-500.0,0.00038802,30]
[355609242,1741367438967,-624.78,0.00038802,30]
[355609243,1741367438977,-500.0,0.00038802,30]
[355609244,1741367438987,-500.0,0.00038802,30]
[355609245,1741367438996,-500.0,0.00038802,30]
[355609246,1741367439008,-500.0,0.00038802,30]
[355609247,1741367439018,-500.0,0.00038903,2]
[355609248,1741367439027,-500.0,0.00038903,30]
[355609249,1741367439036,-500.0,0.00038903,30]
[355609250,1741367439046,-500.0,0.00038903,30]
[355609251,1741367439055,-500.0,0.00038903,30]
[355609252,1741367439067,-342.59985414,0.00038903,30]
[355609253,1741367439078,-500.0,0.00038903,30]
[355609254,1741367439087,-500.0,0.00038903,30]
[355609255,1741367439098,-500.0,0.00038903,30]
[355609256,1741367439109,-500.0,0.00038903,30]
[355609257,1741367439120,-500.0,0.00038903,30]
[355609258,1741367439130,-500.0,0.00038903,30]
[355609259,1741367439141,-500.0,0.00038903,30]
[355609260,1741367439150,-500.0,0.00038903,30]
[355609261,1741367439160,-380.56,0.00038903,30]
[355609262,1741367439169,-500.0,0.00038903,30]
[355609263,1741367439179,-500.0,0.00038903,30]
[355609264,1741367439188,-630.27012748,0.00038903,30]
[355609265,1741367439197,-500.0,0.00038903,30]
[355609266,1741367439207,-500.0,0.00038903,7]
[355609267,1741367439216,-500.0,0.00038903,30]
[355609268,1741367439226,-500.0,0.00038903,30]
[355609269,1741367439235,-318.64,0.00038903,30]
[355609270,1741367439245,-518.94,0.00038903,30]
[355609271,1741367439255,-403.3,0.00038903,30]
[355609272,1741367439266,-204.38,0.00038903,30]
[355609273,1741367439276,-500.0,0.00038904,30]
[355609274,1741367439286,-500.0,0.00038904,30]
[355609275,1741367439298,-500.0,0.00038904,30]
[355609276,1741367439310,-425.55,0.00038904,30]
[355609277,1741367439320,-500.0,0.00038904,30]
[355609278,1741367439330,-387.97,0.00038904,30]
[355609279,1741367439342,-500.0,0.00038904,30]
[355609280,1741367439351,-500.0,0.00038904,30]
[355609281,1741367439360,-431.5,0.00038904,30]
[355609282,1741367439370,-381.45,0.00039076,30]
[355609283,1741367439382,-398.52,0.00039076,30]
[355609284,1741367439392,-242.03,0.00039076,30]
[355609285,1741367439402,-191.03,0.00039076,30]
[355609286,1741367439411,-500.0,0.00039076,30]
[355609287,1741367439421,-256.76,0.00039177,30]
[355609288,1741367439430,-444.51,0.00039177,30]
[355609289,1741367439439,-426.84,0.00039177,30]
[355609290,1741367439449,-259.82,0.00039177,30]
[355609291,1741367439459,-500.0,0.00039177,30]
[355609292,1741367439469,-500.0,0.00039177,30]
[355609293,1741367439478,-544.23,0.00039177,30]
[355609294,1741367439488,-500.0,0.00039177,7]
[355609295,1741367439498,-500.0,0.00039177,30]
[355609296,1741367439507,-442.86,0.00039178,30]
[355609297,1741367439517,-285.95,0.00039178,30]
[355609298,1741367439528,-458.1,0.00039178,30]
[355609299,1741367439537,-559.6,0.00039178,30]
[355609300,1741367439547,-460.87,0.00039178,30]
[355609301,1741367439561,-500.0,0.00039178,30]
[355609302,1741367439570,-203.62,0.0003935,30]
[355609303,1741367439579,-500.0,0.00039451,30]
[355609304,1741367439588,-199.06101675,0.00039451,30]
[355609305,1741367439598,-432.8604,0.00039451,7]
[355609306,1741367439607,-500.0,0.00039451,30]
[355609307,1741367439617,-500.0,0.00039452,30]
[355609308,1741367439627,-500.0,0.00039725,30]
[355609309,1741367439637,-500.0,0.00039725,30]
[355609310,1741367439646,-500.0,0.00039726,30]
[355609311,1741367439655,-500.0,0.00039999,30]
[355609312,1741367439665,-500.0,0.00039999,30]
[355609313,1741367439675,-500.0,0.0004,5]
[355609314,1741367439687,-1793.82,0.0004,120]
[355609315,1741367439697,-500.0,0.0004,30]
[355609316,1741367439707,-500.0,0.00040156,5]
[355609317,1741367439717,-500.0,0.00040273,30]
[355609318,1741367439727,-500.0,0.00040273,30]
[355609319,1741367439736,-500.0,0.00040273,30]
[355609320,1741367439746,-500.0,0.00040547,30]
[355609321,1741367439755,-500.0,0.00040547,30]
[355609322,1741367439766,-500.0,0.00040547,30]
[355609323,1741367439775,-278.94,0.000407,7]
[355609324,1741367439785,-165.46,0.00040801,3]
[355609325,1741367439795,-496.41,0.00040801,3]
[355609326,1741367439804,-661.85,0.00040811,3]
[355609327,1741367439814,-330.92,0.00040811,3]
[355609328,1741367439824,-500.0,0.00040821,30]
[355609329,1741367439833,-500.0,0.00040821,30]
[355609330,1741367439843,-500.0,0.00040821,30]
[355609331,1741367439852,-189.0,0.00041,14]
[355609332,1741367439861,-500.0,0.00041095,30]
[355609333,1741367439871,-634.03837483,0.00041095,120]
[355609334,1741367439881,-500.0,0.00041095,30]
[355609335,1741367439890,-500.0,0.00041095,7]
[355609336,1741367439900,-500.0,0.00041211,2]
[355609337,1741367439909,-3908.16155335,0.00041359,3]
[355609338,1741367439919,-500.0,0.00041369,120]
[355609339,1741367439928,-500.0,0.00041369,120]
[355609340,1741367439937,-794.21,0.00041633,30]
[355609341,1741367439947,-500.0,0.00041643,120]
[355609343,1741367439956,-600.572291,0.00041643,120]
[355609345,1741367439966,-500.0,0.00041643,7]
[355609346,1741367439975,-500.0,0.00041917,120]
[355609348,1741367439984,-330.92,0.00042171,3]
[355609349,1741367439994,-1323.7,0.00042181,3]
[355609350,1741367440003,-661.84,0.00042181,3]
[355609352,1741367440015,-500.0,0.00042191,120]
[355609353,1741367440025,-500.0,0.00042191,7]
[355609354,1741367440035,-500.0,0.00042465,120]
[355609355,1741367440044,-953.06,0.00042709,30]
[355609356,1741367440054,-431.84,0.00042719,30]
[355609358,1741367440063,-500.0,0.00042739,120]
[355609360,1741367440073,-321.99,0.00042739,7]
[355609361,1741367440083,-500.0,0.00043013,120]
[355609362,1741367440093,-189.0,0.00043151,90]
[355609363,1741367440102,-568.87718275,0.00043287,120]
[355609364,1741367440112,-169.0,0.00045,120]
[355609366,1741367440121,-1000.0,0.00045479,10]
[355609367,1741367440130,-500.0,0.00046532,2]
[355609368,1741367440140,-1823.56194655,0.000472,8]
[355609369,1741367440150,-3908.16155335,0.00047452,4]
[355609370,1741367440160,-200.0,0.00047493,120]
[355609371,1741367440169,-573.56641148,0.00047549,120]
[355609372,1741367440179,-240.0,0.000476,120]
[355609374,1741367440188,-2880.05,0.00048,90]
[355609376,1741367440197,-1500.0,0.000484,10]
[355609377,1741367440206,-150.0,0.00048498,30]
[355609378,1741367440216,-6000.0,0.000485,90]
[355609379,1741367440226,-9879.45336073,0.00048504,120]
[355609380,1741367440235,-2279.87385247,0.00048506,120]
[355609381,1741367440245,-3799.78975413,0.00048508,120]
[355609382,1741367440254,-3908.16155335,0.00048512,4]
[355609383,1741367440266,-3799.78975413,0.00048519,120]
[355609384,1741367440276,-9879.45336073,0.00048523,120]
[355609386,1741367440285,-6839.62155743,0.00048524,120]
[355609387,1741367440300,-1519.91590165,0.0004853,120]
[355609388,1741367440310,-6839.62155743,0.00048533,120]
[355609389,1741367440319,-6839.62155743,0.00048537,120]
[355609390,1741367440329,-3908.16155335,0.00048541,4]
[355609391,1741367440339,-9879.45336073,0.00048543,120]
[355609392,1741367440348,-235.35177066,0.00048549,120]
[355609393,1741367440358,-222.8065008,0.00048549,31]
[355609394,1741367440489,-6839.62155743,0.0004855,120]
[355609395,1741367440503,-3799.78975413,0.00048551,120]
[355609396,1741367440515,-1519.91590165,0.00048551,120]
[355609397,1741367440525,-1519.91590165,0.00048555,120]
[355609398,1741367440535,-1519.91590165,0.00048562,120]
[355609399,1741367440546,-2279.87385247,0.00048564,120]
[355609400,1741367440555,-500.0,0.00048573,10]
[355609401,1741367440565,-500.0,0.00048573,10]
[355609403,1741367440575,-500.0,0.00048573,10]
[355609405,1741367440585,-500.0,0.00048573,10]
[355609406,1741367440595,-500.0,0.00048573,10]
[355609408,1741367440605,-9879.45336073,0.00048573,120]
[355609409,1741367440614,-2279.87385247,0.00048579,120]
[355609410,1741367440624,-3799.78975413,0.00048592,120]
[355609411,1741367440633,-2279.87385247,0.00048596,120]
[355609412,1741367440642,-300.52254281,0.000489,2]
[355609413,1741367440652,-1346.02603186,0.000489,2]
[355609414,1741367440661,-3908.16155335,0.0004899,4]
[355609415,1741367440671,-2402.19245131,0.00049,120]
[355609416,1741367440681,-931.89328543,0.00049,30]